[Event "December 12 Early 2023"]
[Site "https://www.chess.com"]
[Date "2023.12.12"]
[Round "4"]
[White "Skurikhin, Dmitrij"]
[Black "Lohani, Sujana"]
[Result "1-0"]
[Board "215"]
[TimeControl "180+1"]
[WhiteFideId "4161297"]
[BlackFideId "12311987"]
[WhiteElo "2331"]
[BlackElo "2011"]
[WhiteTeam "RUS"]
[BlackTeam "NEP"]
[WhiteClock "0:00:06"]
[BlackClock "0:00:10"]

1. d4 {[%clk 0:02:59]}  d6 {[%clk 0:02:56]} 2. Nf3 {[%clk 0:02:53]}  g6 {[%clk 0:02:53]} 3. c4 {[%clk 0:00:37]}  Bg7 {[%clk 0:02:43]} 4. Nc3 {[%clk 0:00:36]}  a6 {[%clk 0:02:42]} 5. e4 {[%clk 0:00:36]}  b6 {[%clk 0:02:42]} 6. Bd3 {[%clk 0:00:33]}  Bb7 {[%clk 0:02:41]} 7. Be3 {[%clk 0:00:33]}  Nd7 {[%clk 0:02:41]} 8. Qd2 {[%clk 0:00:33]}  c5 {[%clk 0:02:39]} 9. d5 {[%clk 0:00:33]}  Ngf6 {[%clk 0:02:38]} 10. h3 {[%clk 0:00:33]}  O-O {[%clk 0:02:35]} 11. Bh6 {[%clk 0:00:32]}  Re8 {[%clk 0:02:23]} 12. Bxg7 {[%clk 0:00:32]}  Kxg7 {[%clk 0:02:23]} 13. g4 {[%clk 0:00:33]}  e6 {[%clk 0:02:22]} 14. O-O-O {[%clk 0:00:31]}  exd5 {[%clk 0:02:22]} 15. exd5 {[%clk 0:00:31]}  Ne5 {[%clk 0:02:20]} 16. Nxe5 {[%clk 0:00:31]}  Rxe5 {[%clk 0:02:20]} 17. f4 {[%clk 0:00:31]}  Re7 {[%clk 0:02:18]} 18. Rde1 {[%clk 0:00:30]}  b5 {[%clk 0:02:14]} 19. g5 {[%clk 0:00:29]}  Nh5 {[%clk 0:02:13]} 20. Ne4 {[%clk 0:00:29]}  bxc4 {[%clk 0:02:12]} 21. Qc3+ {[%clk 0:00:29]}  Kg8 {[%clk 0:02:09]} 22. Bxc4 {[%clk 0:00:29]}  Rb8 {[%clk 0:02:05]} 23. b3 {[%clk 0:00:25]}  Bc8 {[%clk 0:02:01]} 24. Nf6+ {[%clk 0:00:23]}  Nxf6 {[%clk 0:02:00]} 25. gxf6 {[%clk 0:00:23]}  Rxe1+ {[%clk 0:01:58]} 26. Rxe1 {[%clk 0:00:24]}  Bxh3 {[%clk 0:01:53]} 27. Qxh3 {[%clk 0:00:22]}  Qxf6 {[%clk 0:01:53]} 28. Kc2 {[%clk 0:00:20]}  Qxf4 {[%clk 0:01:50]} 29. Qe3 {[%clk 0:00:20]}  Qh2+ {[%clk 0:01:49]} 30. Re2 {[%clk 0:00:20]}  Qh5 {[%clk 0:01:47]} 31. Qe7 {[%clk 0:00:20]}  a5 {[%clk 0:01:41]} 32. Qxd6 {[%clk 0:00:19]}  Rf8 {[%clk 0:01:41]} 33. Re7 {[%clk 0:00:18]}  a4 {[%clk 0:01:35]} 34. Qxc5 {[%clk 0:00:18]}  axb3+ {[%clk 0:01:35]} 35. Bxb3 {[%clk 0:00:17]}  Qh2+ {[%clk 0:01:31]} 36. Kc3 {[%clk 0:00:16]}  Qh3+ {[%clk 0:01:29]} 37. Kd2 {[%clk 0:00:16]}  Qh2+ {[%clk 0:01:27]} 38. Re2 {[%clk 0:00:16]}  Qf4+ {[%clk 0:01:27]} 39. Kc2 {[%clk 0:00:16]}  Qf5+ {[%clk 0:01:25]} 40. Kb2 {[%clk 0:00:15]}  Qf3 {[%clk 0:01:21]} 41. Qe3 {[%clk 0:00:15]}  Qf6+ {[%clk 0:01:20]} 42. Qe5 {[%clk 0:00:15]}  Qf1 {[%clk 0:01:16]} 43. d6 {[%clk 0:00:15]}  Rc8 {[%clk 0:01:12]} 44. Rc2 {[%clk 0:00:15]}  Rxc2+ {[%clk 0:01:03]} 45. Kxc2 {[%clk 0:00:14]}  Qf2+ {[%clk 0:01:02]} 46. Kc3 {[%clk 0:00:14]}  Qf3+ {[%clk 0:00:58]} 47. Kc4 {[%clk 0:00:14]}  Qf1+ {[%clk 0:00:55]} 48. Kc5 {[%clk 0:00:13]}  Qc1+ {[%clk 0:00:54]} 49. Kb6 {[%clk 0:00:12]}  Qg1+ {[%clk 0:00:51]} 50. Kb7 {[%clk 0:00:12]}  Qg2+ {[%clk 0:00:50]} 51. Kb8 {[%clk 0:00:11]}  Qc6 {[%clk 0:00:47]} 52. Qd5 {[%clk 0:00:08]}  Qb6+ {[%clk 0:00:47]} 53. Kc8 {[%clk 0:00:08]}  Qa6+ {[%clk 0:00:45]} 54. Kc7 {[%clk 0:00:08]}  Qa7+ {[%clk 0:00:45]} 55. Qb7 {[%clk 0:00:08]}  Qc5+ {[%clk 0:00:44]} 56. Kd7 {[%clk 0:00:07]}  Qf5+ {[%clk 0:00:44]} 57. Kd8 {[%clk 0:00:05]}  Qa5+ {[%clk 0:00:43]} 58. Qc7 {[%clk 0:00:04]}  Qa8+ {[%clk 0:00:43]} 59. Qc8 {[%clk 0:00:04]}  Qa5+ {[%clk 0:00:42]} 60. Kd7+ {[%clk 0:00:04]}  Kg7 {[%clk 0:00:39]} 61. Qc7 {[%clk 0:00:05]}  Qf5+ {[%clk 0:00:39]} 62. Kd8 {[%clk 0:00:04]}  Qf6+ {[%clk 0:00:36]} 63. Kc8 {[%clk 0:00:04]}  Qf5+ {[%clk 0:00:35]} 64. d7 {[%clk 0:00:04]}  h5 {[%clk 0:00:32]} 65. Qc3+ {[%clk 0:00:03]}  f6 {[%clk 0:00:30]} 66. Qc4 {[%clk 0:00:03]}  h4 {[%clk 0:00:27]} 67. Qd5 {[%clk 0:00:02]}  Qxd5 {[%clk 0:00:24]} 68. Bxd5 {[%clk 0:00:03]}  h3 {[%clk 0:00:24]} 69. d8=Q {[%clk 0:00:04]}  g5 {[%clk 0:00:24]} 70. Qe7+ {[%clk 0:00:04]}  Kg6 {[%clk 0:00:24]} 71. Be4+ {[%clk 0:00:04]}  f5 {[%clk 0:00:23]} 72. Qe6+ {[%clk 0:00:04]}  Kh5 {[%clk 0:00:16]} 73. Qxf5 {[%clk 0:00:04]}  h2 {[%clk 0:00:15]} 74. Bf3+ {[%clk 0:00:04]}  Kh6 {[%clk 0:00:14]} 75. Qg4 {[%clk 0:00:04]}  h1=Q {[%clk 0:00:13]} 76. Bxh1 {[%clk 0:00:03]}  Kg7 {[%clk 0:00:14]} 77. Be4 {[%clk 0:00:04]}  Kf7 {[%clk 0:00:13]} 78. Qf5+ {[%clk 0:00:05]}  Ke7 {[%clk 0:00:10]} 79. Qxg5+ {[%clk 0:00:06]} 1-0

[Event "December 12 Early 2023"]
[Site "https://www.chess.com"]
[Date "2023.12.12"]
[Round "4"]
[White "Donatti, Alvaro"]
[Black "Filippova, Margarita"]
[Result "1-0"]
[Board "216"]
[TimeControl "180+1"]
[WhiteFideId "3000303"]
[BlackFideId "34199680"]
[WhiteElo "1980"]
[BlackElo "2327"]
[WhiteTeam "URU"]
[BlackTeam "RUS"]
[WhiteClock "0:01:30"]
[BlackClock "0:01:48"]

1. e4 {[%clk 0:03:00]}  e5 {[%clk 0:02:58]} 2. Nf3 {[%clk 0:03:00]}  Nc6 {[%clk 0:02:55]} 3. Bb5 {[%clk 0:02:59]}  Nge7 {[%clk 0:02:55]} 4. O-O {[%clk 0:02:58]}  a6 {[%clk 0:02:55]} 5. Ba4 {[%clk 0:02:57]}  g6 {[%clk 0:02:55]} 6. d4 {[%clk 0:02:57]}  exd4 {[%clk 0:02:55]} 7. Nxd4 {[%clk 0:02:55]}  Bg7 {[%clk 0:02:55]} 8. Be3 {[%clk 0:02:55]}  O-O {[%clk 0:02:55]} 9. c3 {[%clk 0:02:53]}  d6 {[%clk 0:02:53]} 10. Nd2 {[%clk 0:02:52]}  Bd7 {[%clk 0:02:52]} 11. Bb3 {[%clk 0:02:46]}  Na5 {[%clk 0:02:44]} 12. Bc2 {[%clk 0:02:42]}  d5 {[%clk 0:02:43]} 13. Re1 {[%clk 0:02:34]}  c5 {[%clk 0:02:38]} 14. N4f3 {[%clk 0:02:30]}  Rc8 {[%clk 0:02:34]} 15. Bg5 {[%clk 0:02:16]}  f6 {[%clk 0:02:27]} 16. Bh4 {[%clk 0:02:14]}  Nac6 {[%clk 0:02:19]} 17. exd5 {[%clk 0:02:13]}  Nxd5 {[%clk 0:02:20]} 18. Ne4 {[%clk 0:02:07]}  Bf5 {[%clk 0:02:10]} 19. Nxc5 {[%clk 0:01:37]}  Bxc2 {[%clk 0:02:04]} 20. Qxc2 {[%clk 0:01:37]}  Rf7 {[%clk 0:01:57]} 21. Rad1 {[%clk 0:01:32]}  Rd7 {[%clk 0:01:48]} 22. Nxd7 {[%clk 0:01:30]} 1-0

[Event "December 12 Early 2023"]
[Site "https://www.chess.com"]
[Date "2023.12.12"]
[Round "5"]
[White "Aronian, Levon"]
[Black "Zakhartsov, Vladimir"]
[Result "0-1"]
[Board "1"]
[TimeControl "180+1"]
[WhiteFideId "13300474"]
[BlackFideId "4145097"]
[WhiteElo "3125"]
[BlackElo "2919"]
[WhiteTeam "USA"]
[BlackTeam "RUS"]
[WhiteClock "0:00:00"]
[BlackClock "0:00:15"]

1. e4 {[%clk 0:03:00]}  c5 {[%clk 0:02:54]} 2. Nf3 {[%clk 0:03:00]}  Nc6 {[%clk 0:02:54]} 3. Bb5 {[%clk 0:03:00]}  g6 {[%clk 0:02:52]} 4. Bxc6 {[%clk 0:02:58]}  bxc6 {[%clk 0:02:44]} 5. O-O {[%clk 0:02:50]}  Bg7 {[%clk 0:02:44]} 6. Re1 {[%clk 0:02:51]}  Nh6 {[%clk 0:02:42]} 7. c3 {[%clk 0:02:47]}  O-O {[%clk 0:02:34]} 8. d3 {[%clk 0:02:47]}  d6 {[%clk 0:02:27]} 9. e5 {[%clk 0:02:42]}  f6 {[%clk 0:02:05]} 10. e6 {[%clk 0:02:33]}  d5 {[%clk 0:01:58]} 11. Qa4 {[%clk 0:02:27]}  Qb6 {[%clk 0:01:36]} 12. Nbd2 {[%clk 0:02:24]}  Nf5 {[%clk 0:01:34]} 13. Nb3 {[%clk 0:02:24]}  Ba6 {[%clk 0:01:29]} 14. Nxc5 {[%clk 0:02:15]}  Qxc5 {[%clk 0:01:12]} 15. Qxa6 {[%clk 0:02:14]}  Rfb8 {[%clk 0:01:12]} 16. d4 {[%clk 0:02:06]}  Qb5 {[%clk 0:01:07]} 17. Qxb5 {[%clk 0:02:03]}  Rxb5 {[%clk 0:01:08]} 18. b3 {[%clk 0:01:57]}  g5 {[%clk 0:01:08]} 19. g4 {[%clk 0:01:44]}  Nd6 {[%clk 0:01:05]} 20. Ba3 {[%clk 0:01:44]}  Ne4 {[%clk 0:01:05]} 21. Re3 {[%clk 0:01:34]}  Rb7 {[%clk 0:00:54]} 22. Ne1 {[%clk 0:01:33]}  f5 {[%clk 0:00:41]} 23. gxf5 {[%clk 0:01:33]}  c5 {[%clk 0:00:38]} 24. Rd1 {[%clk 0:01:08]}  cxd4 {[%clk 0:00:33]} 25. cxd4 {[%clk 0:01:08]}  Rc8 {[%clk 0:00:32]} 26. Kg2 {[%clk 0:00:58]}  Rbc7 {[%clk 0:00:24]} 27. Nf3 {[%clk 0:00:48]}  Rc2 {[%clk 0:00:23]} 28. Rf1 {[%clk 0:00:42]}  Bf6 {[%clk 0:00:23]} 29. Ne5 {[%clk 0:00:12]}  Rxa2 {[%clk 0:00:23]} 30. Bb4 {[%clk 0:00:12]}  Rcc2 {[%clk 0:00:23]} 31. Ng4 {[%clk 0:00:09]}  Bxd4 {[%clk 0:00:22]} 32. Rf3 {[%clk 0:00:08]}  h5 {[%clk 0:00:18]} 33. Ne3 {[%clk 0:00:04]}  Bxe3 {[%clk 0:00:18]} 34. Rxe3 {[%clk 0:00:04]}  Rxf2+ {[%clk 0:00:19]} 35. Rxf2 {[%clk 0:00:04]}  Rxf2+ {[%clk 0:00:19]} 36. Kg1 {[%clk 0:00:04]}  Rxf5 {[%clk 0:00:19]} 37. Bxe7 {[%clk 0:00:04]}  Re5 {[%clk 0:00:19]} 38. Rd3 {[%clk 0:00:03]}  Rxe6 {[%clk 0:00:18]} 39. Ba3 {[%clk 0:00:04]}  Re5 {[%clk 0:00:17]} 40. Bb2 {[%clk 0:00:04]}  Rf5 {[%clk 0:00:17]} 41. Bd4 {[%clk 0:00:04]}  g4 {[%clk 0:00:18]} 42. Bxa7 {[%clk 0:00:04]}  Ng5 {[%clk 0:00:18]} 43. Kg2 {[%clk 0:00:03]}  Ne6 {[%clk 0:00:17]} 44. Be3 {[%clk 0:00:02]}  Rf3 {[%clk 0:00:16]} 45. b4 {[%clk 0:00:01]}  d4 {[%clk 0:00:15]} 46. Rxd4 {[%clk 0:00:02]}  Nxd4 {[%clk 0:00:14]} 47. Bxd4 {[%clk 0:00:02]}  Rb3 {[%clk 0:00:15]} 48. Be5 {[%clk 0:00:01]}  Kf7 {[%clk 0:00:15]} 49. h3 {[%clk 0:00:01]}  Rxh3 {[%clk 0:00:15]} 50. Bg3 {[%clk 0:00:02]}  Ke6 {[%clk 0:00:14]} 51. b5 {[%clk 0:00:02]}  Rxg3+ {[%clk 0:00:14]} 52. Kxg3 {[%clk 0:00:00]}  Kd6 {[%clk 0:00:15]} 0-1

[Event "December 12 Early 2023"]
[Site "https://www.chess.com"]
[Date "2023.12.12"]
[Round "5"]
[White "Mitrabha, Guha"]
[Black "Oparin, Grigoriy"]
[Result "1-0"]
[Board "2"]
[TimeControl "180+1"]
[WhiteFideId "5057000"]
[BlackFideId "24125890"]
[WhiteElo "2907"]
[BlackElo "3061"]
[WhiteTeam "IND"]
[BlackTeam "USA"]
[WhiteClock "0:00:14"]
[BlackClock "0:00:00"]

1. Nf3 {[%clk 0:03:00]}  Nf6 {[%clk 0:02:59]} 2. c4 {[%clk 0:03:00]}  b6 {[%clk 0:02:59]} 3. g3 {[%clk 0:03:00]}  c5 {[%clk 0:02:59]} 4. Bg2 {[%clk 0:03:01]}  Bb7 {[%clk 0:03:00]} 5. O-O {[%clk 0:03:02]}  g6 {[%clk 0:03:01]} 6. b3 {[%clk 0:03:02]}  Bg7 {[%clk 0:03:01]} 7. Bb2 {[%clk 0:03:03]}  O-O {[%clk 0:03:01]} 8. Nc3 {[%clk 0:03:03]}  e6 {[%clk 0:03:01]} 9. d4 {[%clk 0:03:03]}  Qe7 {[%clk 0:03:02]} 10. Qd2 {[%clk 0:02:58]}  d5 {[%clk 0:02:56]} 11. cxd5 {[%clk 0:02:53]}  exd5 {[%clk 0:02:56]} 12. Rad1 {[%clk 0:02:51]}  Rd8 {[%clk 0:02:55]} 13. dxc5 {[%clk 0:02:50]}  bxc5 {[%clk 0:02:56]} 14. Na4 {[%clk 0:02:51]}  Na6 {[%clk 0:02:52]} 15. Qc1 {[%clk 0:02:50]}  Rac8 {[%clk 0:02:50]} 16. e3 {[%clk 0:02:50]}  Bc6 {[%clk 0:02:33]} 17. Nc3 {[%clk 0:02:46]}  d4 {[%clk 0:02:16]} 18. Ne2 {[%clk 0:02:32]}  Ng4 {[%clk 0:01:51]} 19. h3 {[%clk 0:02:15]}  Qb7 {[%clk 0:01:51]} 20. hxg4 {[%clk 0:02:03]}  Bxf3 {[%clk 0:01:51]} 21. Nf4 {[%clk 0:02:03]}  Nb4 {[%clk 0:01:14]} 22. Qa1 {[%clk 0:01:17]}  Bxg2 {[%clk 0:00:43]} 23. Nxg2 {[%clk 0:01:18]}  Qf3 {[%clk 0:00:43]} 24. g5 {[%clk 0:01:08]}  Nc6 {[%clk 0:00:30]} 25. exd4 {[%clk 0:00:54]}  cxd4 {[%clk 0:00:30]} 26. Nf4 {[%clk 0:00:50]}  Qg4 {[%clk 0:00:24]} 27. Qb1 {[%clk 0:00:45]}  Qxg5 {[%clk 0:00:21]} 28. Qe4 {[%clk 0:00:45]}  h5 {[%clk 0:00:21]} 29. Rc1 {[%clk 0:00:41]}  Qb5 {[%clk 0:00:19]} 30. Rc4 {[%clk 0:00:32]}  Re8 {[%clk 0:00:18]} 31. Qd5 {[%clk 0:00:31]}  Qxd5 {[%clk 0:00:17]} 32. Nxd5 {[%clk 0:00:32]}  Rcd8 {[%clk 0:00:14]} 33. Nc7 {[%clk 0:00:32]}  Ne5 {[%clk 0:00:08]} 34. Ra4 {[%clk 0:00:21]}  Re7 {[%clk 0:00:08]} 35. Nb5 {[%clk 0:00:20]}  d3 {[%clk 0:00:07]} 36. Kg2 {[%clk 0:00:19]}  d2 {[%clk 0:00:07]} 37. Rd1 {[%clk 0:00:18]}  Ng4 {[%clk 0:00:07]} 38. Bxg7 {[%clk 0:00:18]}  Kxg7 {[%clk 0:00:08]} 39. Rd4 {[%clk 0:00:17]}  Rxd4 {[%clk 0:00:06]} 40. Nxd4 {[%clk 0:00:18]}  Rd7 {[%clk 0:00:04]} 41. Rxd2 {[%clk 0:00:19]}  Kg8 {[%clk 0:00:05]} 42. Nf3 {[%clk 0:00:18]}  Rxd2 {[%clk 0:00:05]} 43. Nxd2 {[%clk 0:00:19]}  Ne5 {[%clk 0:00:06]} 44. Ne4 {[%clk 0:00:17]}  Kf8 {[%clk 0:00:06]} 45. Nd6 {[%clk 0:00:18]}  Nc6 {[%clk 0:00:06]} 46. Kf3 {[%clk 0:00:18]}  Ke7 {[%clk 0:00:06]} 47. Nc4 {[%clk 0:00:18]}  Ke6 {[%clk 0:00:07]} 48. Ke4 {[%clk 0:00:19]}  f6 {[%clk 0:00:08]} 49. a3 {[%clk 0:00:19]}  g5 {[%clk 0:00:08]} 50. b4 {[%clk 0:00:19]}  a6 {[%clk 0:00:07]} 51. Nb2 {[%clk 0:00:18]}  f5+ {[%clk 0:00:08]} 52. Ke3 {[%clk 0:00:18]}  Kd5 {[%clk 0:00:08]} 53. Nd3 {[%clk 0:00:18]}  Na7 {[%clk 0:00:06]} 54. a4 {[%clk 0:00:15]}  Nc8 {[%clk 0:00:06]} 55. a5 {[%clk 0:00:11]}  Kc4 {[%clk 0:00:03]} 56. Nc5 {[%clk 0:00:10]}  Kxb4 {[%clk 0:00:04]} 57. Nxa6+ {[%clk 0:00:10]}  Kxa5 {[%clk 0:00:04]} 58. Nc7 {[%clk 0:00:11]}  Nd6 {[%clk 0:00:03]} 59. Ne6 {[%clk 0:00:12]}  f4+ {[%clk 0:00:03]} 60. gxf4 {[%clk 0:00:11]}  gxf4+ {[%clk 0:00:04]} 61. Nxf4 {[%clk 0:00:12]}  h4 {[%clk 0:00:04]} 62. Nh3 {[%clk 0:00:11]}  Kb5 {[%clk 0:00:05]} 63. Kf4 {[%clk 0:00:11]}  Kc5 {[%clk 0:00:05]} 64. Ke5 {[%clk 0:00:12]}  Nc4+ {[%clk 0:00:05]} 65. Ke6 {[%clk 0:00:12]}  Nb6 {[%clk 0:00:03]} 66. f4 {[%clk 0:00:12]}  Nd5 {[%clk 0:00:04]} 67. f5 {[%clk 0:00:12]}  Kd4 {[%clk 0:00:04]} 68. Ng5 {[%clk 0:00:11]}  Nf4+ {[%clk 0:00:05]} 69. Kd6 {[%clk 0:00:12]}  Nd5 {[%clk 0:00:05]} 70. Nf3+ {[%clk 0:00:11]}  Ke4 {[%clk 0:00:06]} 71. Nxh4 {[%clk 0:00:11]}  Nf6 {[%clk 0:00:04]} 72. Ke6 {[%clk 0:00:12]}  Ng4 {[%clk 0:00:04]} 73. Ng6 {[%clk 0:00:11]}  Kd4 {[%clk 0:00:04]} 74. Ne7 {[%clk 0:00:10]}  Ke4 {[%clk 0:00:04]} 75. Nd5 {[%clk 0:00:11]}  Kd4 {[%clk 0:00:04]} 76. Nc7 {[%clk 0:00:11]}  Ke4 {[%clk 0:00:04]} 77. Ne8 {[%clk 0:00:11]}  Kf4 {[%clk 0:00:04]} 78. Nd6 {[%clk 0:00:11]}  Kg5 {[%clk 0:00:04]} 79. Ne4+ {[%clk 0:00:11]}  Kf4 {[%clk 0:00:04]} 80. Nf6 {[%clk 0:00:12]}  Nh6 {[%clk 0:00:04]} 81. Nd5+ {[%clk 0:00:12]}  Kg5 {[%clk 0:00:04]} 82. f6 {[%clk 0:00:13]}  Kg6 {[%clk 0:00:03]} 83. Ne7+ {[%clk 0:00:13]}  Kh7 {[%clk 0:00:03]} 84. Nf5 {[%clk 0:00:14]}  Kg6 {[%clk 0:00:00]} 85. Nxh6 {[%clk 0:00:14]} 1-0

[Event "December 12 Early 2023"]
[Site "https://www.chess.com"]
[Date "2023.12.12"]
[Round "5"]
[White "Daneshvar, Bardiya"]
[Black "Tologon tegin, Semetei"]
[Result "0-1"]
[Board "9"]
[TimeControl "180+1"]
[WhiteFideId "12576468"]
[BlackFideId "13800574"]
[WhiteElo "2989"]
[BlackElo "2637"]
[WhiteTeam "IRI"]
[BlackTeam "KGZ"]
[WhiteClock "0:01:10"]
[BlackClock "0:00:35"]

1. b3 {[%clk 0:02:56]}  e5 {[%clk 0:02:55]} 2. Bb2 {[%clk 0:02:56]}  Nc6 {[%clk 0:02:55]} 3. e3 {[%clk 0:02:57]}  a6 {[%clk 0:02:53]} 4. Nf3 {[%clk 0:02:56]}  d6 {[%clk 0:02:51]} 5. d4 {[%clk 0:02:56]}  exd4 {[%clk 0:02:49]} 6. Nxd4 {[%clk 0:02:56]}  Bd7 {[%clk 0:02:48]} 7. c4 {[%clk 0:02:56]}  Nf6 {[%clk 0:02:47]} 8. Nc3 {[%clk 0:02:56]}  Be7 {[%clk 0:02:46]} 9. Be2 {[%clk 0:02:56]}  O-O {[%clk 0:02:46]} 10. O-O {[%clk 0:02:56]}  Re8 {[%clk 0:02:45]} 11. Qd2 {[%clk 0:02:55]}  Bf8 {[%clk 0:02:45]} 12. Rad1 {[%clk 0:02:53]}  g6 {[%clk 0:02:37]} 13. Nxc6 {[%clk 0:02:48]}  Bxc6 {[%clk 0:02:36]} 14. Nd5 {[%clk 0:02:48]}  Bg7 {[%clk 0:02:32]} 15. Qc2 {[%clk 0:02:42]}  Bxd5 {[%clk 0:01:52]} 16. cxd5 {[%clk 0:02:42]}  Nd7 {[%clk 0:01:45]} 17. Bxg7 {[%clk 0:02:41]}  Kxg7 {[%clk 0:01:45]} 18. b4 {[%clk 0:02:40]}  Rc8 {[%clk 0:01:33]} 19. b5 {[%clk 0:02:34]}  Nc5 {[%clk 0:01:30]} 20. bxa6 {[%clk 0:02:34]}  bxa6 {[%clk 0:01:31]} 21. Rd4 {[%clk 0:02:30]}  Rb8 {[%clk 0:01:30]} 22. h4 {[%clk 0:02:27]}  h5 {[%clk 0:01:29]} 23. Rf4 {[%clk 0:02:24]}  Re5 {[%clk 0:01:26]} 24. Bf3 {[%clk 0:02:23]}  Rb6 {[%clk 0:01:22]} 25. g3 {[%clk 0:02:16]}  Qb8 {[%clk 0:01:18]} 26. Qc3 {[%clk 0:02:15]}  Rb2 {[%clk 0:01:11]} 27. Ra1 {[%clk 0:02:13]}  Rb1+ {[%clk 0:01:08]} 28. Kg2 {[%clk 0:02:10]}  Rxa1 {[%clk 0:01:08]} 29. Qxa1 {[%clk 0:02:11]}  Qb5 {[%clk 0:01:02]} 30. Qc3 {[%clk 0:02:05]}  Qd3 {[%clk 0:01:00]} 31. Rc4 {[%clk 0:02:01]}  Qxc3 {[%clk 0:01:00]} 32. Rxc3 {[%clk 0:02:02]}  Re8 {[%clk 0:01:00]} 33. Be2 {[%clk 0:01:57]}  Rb8 {[%clk 0:01:00]} 34. Rc2 {[%clk 0:01:57]}  f5 {[%clk 0:00:59]} 35. Bf3 {[%clk 0:01:44]}  Kf6 {[%clk 0:00:59]} 36. Kf1 {[%clk 0:01:44]}  Ke5 {[%clk 0:00:59]} 37. Ke2 {[%clk 0:01:44]}  Rb1 {[%clk 0:00:58]} 38. Kd2 {[%clk 0:01:42]}  Rb7 {[%clk 0:00:43]} 39. Kc3 {[%clk 0:01:37]}  Ne4+ {[%clk 0:00:43]} 40. Bxe4 {[%clk 0:01:36]}  fxe4 {[%clk 0:00:44]} 41. Kd2 {[%clk 0:01:32]}  Kxd5 {[%clk 0:00:43]} 42. Ke2 {[%clk 0:01:30]}  c5 {[%clk 0:00:42]} 43. f3 {[%clk 0:01:28]}  exf3+ {[%clk 0:00:43]} 44. Kxf3 {[%clk 0:01:29]}  Ke5 {[%clk 0:00:43]} 45. Rc3 {[%clk 0:01:28]}  Rf7+ {[%clk 0:00:43]} 46. Ke2 {[%clk 0:01:28]}  Rb7 {[%clk 0:00:42]} 47. Ra3 {[%clk 0:01:28]}  Rb6 {[%clk 0:00:43]} 48. Ra5 {[%clk 0:01:27]}  Rc6 {[%clk 0:00:41]} 49. Kd3 {[%clk 0:01:25]}  d5 {[%clk 0:00:42]} 50. Ra4 {[%clk 0:01:23]}  c4+ {[%clk 0:00:41]} 51. Kd2 {[%clk 0:01:23]}  Ke4 {[%clk 0:00:40]} 52. Ra5 {[%clk 0:01:23]}  Rb6 {[%clk 0:00:40]} 53. Kc3 {[%clk 0:01:18]}  Rd6 {[%clk 0:00:40]} 54. Kd2 {[%clk 0:01:17]}  Kf3 {[%clk 0:00:40]} 55. Ra3 {[%clk 0:01:11]}  Kxg3 {[%clk 0:00:40]} 56. Kc3 {[%clk 0:01:10]}  Kxh4 {[%clk 0:00:39]} 57. Kd4 {[%clk 0:01:11]}  Kg4 {[%clk 0:00:37]} 58. Ra4 {[%clk 0:01:09]}  h4 {[%clk 0:00:36]} 59. Rb4 {[%clk 0:01:10]}  h3 {[%clk 0:00:36]} 60. e4 {[%clk 0:01:10]}  dxe4+ {[%clk 0:00:35]} 0-1

[Event "December 12 Early 2023"]
[Site "https://www.chess.com"]
[Date "2023.12.12"]
[Round "5"]
[White "Wagh Suyog"]
[Black "Harsha Bharathakoti"]
[Result "1/2-1/2"]
[Board "12"]
[TimeControl "180+1"]
[WhiteFideId "25071688"]
[BlackFideId "5078776"]
[WhiteElo "2790"]
[BlackElo "2906"]
[WhiteTeam "IND"]
[BlackTeam "IND"]
[WhiteClock "0:00:12"]
[BlackClock "0:00:22"]

1. e4 {[%clk 0:03:00]}  Nc6 {[%clk 0:02:56]} 2. Nf3 {[%clk 0:03:00]}  d6 {[%clk 0:02:56]} 3. d4 {[%clk 0:03:00]}  Nf6 {[%clk 0:02:56]} 4. Nc3 {[%clk 0:02:58]}  g6 {[%clk 0:02:56]} 5. h3 {[%clk 0:02:57]}  Bg7 {[%clk 0:02:56]} 6. Be2 {[%clk 0:02:58]}  O-O {[%clk 0:02:56]} 7. O-O {[%clk 0:02:58]}  e5 {[%clk 0:02:45]} 8. dxe5 {[%clk 0:02:59]}  dxe5 {[%clk 0:02:43]} 9. Bc4 {[%clk 0:02:56]}  Qe7 {[%clk 0:02:37]} 10. Bg5 {[%clk 0:02:51]}  Be6 {[%clk 0:02:27]} 11. Nd5 {[%clk 0:02:40]}  Bxd5 {[%clk 0:02:25]} 12. Bxd5 {[%clk 0:02:38]}  Rfd8 {[%clk 0:02:08]} 13. c3 {[%clk 0:02:34]}  Rd6 {[%clk 0:00:31]} 14. Qb3 {[%clk 0:02:17]}  Rb8 {[%clk 0:00:32]} 15. Rad1 {[%clk 0:02:10]}  h6 {[%clk 0:00:31]} 16. Bxf6 {[%clk 0:02:08]}  Bxf6 {[%clk 0:00:30]} 17. Nd2 {[%clk 0:02:03]}  Nd8 {[%clk 0:00:19]} 18. Qa3 {[%clk 0:00:22]}  a6 {[%clk 0:00:06]} 19. Nc4 {[%clk 0:00:18]}  Rd7 {[%clk 0:00:07]} 20. Qxe7 {[%clk 0:00:18]}  Rxe7 {[%clk 0:00:07]} 21. Ne3 {[%clk 0:00:18]}  c6 {[%clk 0:00:06]} 22. Bb3 {[%clk 0:00:18]}  Bg5 {[%clk 0:00:07]} 23. Nc4 {[%clk 0:00:18]}  b5 {[%clk 0:00:04]} 24. Nd6 {[%clk 0:00:18]}  Nb7 {[%clk 0:00:02]} 25. Nxb7 {[%clk 0:00:13]}  Rbxb7 {[%clk 0:00:02]} 26. g3 {[%clk 0:00:13]}  a5 {[%clk 0:00:01]} 27. Rd6 {[%clk 0:00:12]}  Rec7 {[%clk 0:00:02]} 28. Rxg6+ {[%clk 0:00:12]}  Kf8 {[%clk 0:00:02]} 29. Rd6 {[%clk 0:00:13]}  a4 {[%clk 0:00:03]} 30. Bc2 {[%clk 0:00:13]}  Ke7 {[%clk 0:00:03]} 31. Rfd1 {[%clk 0:00:13]}  Rd7 {[%clk 0:00:02]} 32. Rxd7+ {[%clk 0:00:14]}  Rxd7 {[%clk 0:00:03]} 33. Rxd7+ {[%clk 0:00:13]}  Kxd7 {[%clk 0:00:03]} 34. b3 {[%clk 0:00:13]}  axb3 {[%clk 0:00:03]} 35. axb3 {[%clk 0:00:14]}  Bd2 {[%clk 0:00:03]} 36. c4 {[%clk 0:00:15]}  bxc4 {[%clk 0:00:04]} 37. bxc4 {[%clk 0:00:16]}  Kd6 {[%clk 0:00:04]} 38. Kf1 {[%clk 0:00:15]}  Kc5 {[%clk 0:00:05]} 39. Ba4 {[%clk 0:00:15]}  Ba5 {[%clk 0:00:02]} 40. Ke2 {[%clk 0:00:16]}  Kxc4 {[%clk 0:00:02]} 41. Bxc6 {[%clk 0:00:15]}  Kd4 {[%clk 0:00:03]} 42. Be8 {[%clk 0:00:15]}  f6 {[%clk 0:00:03]} 43. Bg6 {[%clk 0:00:15]}  Kc5 {[%clk 0:00:03]} 44. Bf5 {[%clk 0:00:16]}  Kd6 {[%clk 0:00:04]} 45. Kf3 {[%clk 0:00:16]}  Be1 {[%clk 0:00:04]} 46. Ke2 {[%clk 0:00:15]}  Bb4 {[%clk 0:00:04]} 47. Kf1 {[%clk 0:00:14]}  Ke7 {[%clk 0:00:04]} 48. Kg2 {[%clk 0:00:15]}  Kf8 {[%clk 0:00:05]} 49. Kf3 {[%clk 0:00:14]}  Kg7 {[%clk 0:00:06]} 50. Kg4 {[%clk 0:00:14]}  Ba5 {[%clk 0:00:06]} 51. Be6 {[%clk 0:00:10]}  Be1 {[%clk 0:00:07]} 52. Kf3 {[%clk 0:00:10]}  Ba5 {[%clk 0:00:08]} 53. Bd5 {[%clk 0:00:10]}  Bb4 {[%clk 0:00:09]} 54. Ke2 {[%clk 0:00:11]}  Ba5 {[%clk 0:00:10]} 55. h4 {[%clk 0:00:09]}  Bb6 {[%clk 0:00:11]} 56. f3 {[%clk 0:00:09]}  Ba7 {[%clk 0:00:12]} 57. g4 {[%clk 0:00:08]}  Bb6 {[%clk 0:00:13]} 58. Kf1 {[%clk 0:00:08]}  Ba7 {[%clk 0:00:13]} 59. Kg2 {[%clk 0:00:09]}  Bb6 {[%clk 0:00:14]} 60. Kh3 {[%clk 0:00:10]}  Ba5 {[%clk 0:00:14]} 61. Kg2 {[%clk 0:00:11]}  Be1 {[%clk 0:00:14]} 62. h5 {[%clk 0:00:11]}  Bh4 {[%clk 0:00:14]} 63. Kf1 {[%clk 0:00:11]}  Bg5 {[%clk 0:00:15]} 64. Ke2 {[%clk 0:00:12]}  Bf4 {[%clk 0:00:16]} 65. Kd3 {[%clk 0:00:13]}  Bg5 {[%clk 0:00:17]} 66. Kc4 {[%clk 0:00:13]}  Bf4 {[%clk 0:00:18]} 67. Kb5 {[%clk 0:00:14]}  Bg5 {[%clk 0:00:19]} 68. Kc6 {[%clk 0:00:15]}  Bf4 {[%clk 0:00:20]} 69. Kd7 {[%clk 0:00:16]}  Bg5 {[%clk 0:00:21]} 70. Ke6 {[%clk 0:00:17]}  Bf4 {[%clk 0:00:22]} 71. Kf5 {[%clk 0:00:12]}  Bg5 {[%clk 0:00:22]} 1/2-1/2